Workbook

Sheet BA Sept 2022
A1: COLUMBIA GAS OF KENTUCKY, INC.
A3: CALCULATION OF BALANCING ADJUSTMENT
A4: TO BE EFFECTIVE UNIT 1 SEPTEMBER THROUGH UNIT 21 NOVEMBER
A5: (AUGUST 29, 2022 - NOVEMBER 28, 2022)
A6: Line
A7: No. | C7: Description | D7: Detail | E7: Amount
D8: $ | E8: $
A10: 1 | C10: RECONCILIATION OF PREVIOUS PERFORMANCE BASED RATE ADJUSTMENT
A11: =+A10+1 -> 2 | C11: Total adjustment to have been collected from
A12: =+A11+1 -> 3 | C12: customers in Case No. 2021-00184 | D12: ='PBRA 2021-00184'!F9 -> 1749098.54
A13: =+A12+1 -> 4 | C13: Less: actual amount distributed | D13: ='PBRA 2021-00184'!C29 -> 1721372.213
A15: =+A13+1 -> 5 | C15: REMAINING AMOUNT | E15: =D12-D13 -> 27726.32698
A17: =+A15+1 -> 6 | C17: RECONCILIATION OF A PREVIOUS BALANCING ADJUSTMENT
A18: =+A17+1 -> 7 | C18: Total adjustment to have been collected from
A19: =+A18+1 -> 8 | C19: customers in Case No. 2022-00026 | D19: ='BA 2022-00026 '!C19 -> 720.64
A20: =+A19+1 -> 9 | C20: Less: actual amount collected | D20: ='BA 2022-00026 '!C21 -> 945.91
A22: =+A20+1 -> 10 | C22: REMAINING AMOUNT | E22: =D19-D20 -> -225.27
A24: =+A22+1 -> 11 | C24: RECONCILIATION OF PREVIOUS ACTUAL COST ADJUSTMENT
A25: =+A24+1 -> 12 | C25: Total adjustment to have been distributed to
A26: =+A25+1 -> 13 | C26: customers in Case No. 2021-000184 | D26: ='ACA 2021-00184'!J10 -> -1768327.32
A27: =+A26+1 -> 14 | C27: Less: actual amount distributed | D27: ='ACA 2021-00184'!D30 -> -1718651.13
A29: =+A27+1 -> 15 | C29: REMAINING AMOUNT | E29: =+D26-D27 -> -49676.19
A31: =+A29+1 -> 16 | C31: TOTAL BALANCING ADJUSTMENT AMOUNT | E31: =SUM(E9:E30) -> -22175.13303
A33: =+A31+1 -> 17 | C33: Divided by: projected sales volumes for the three months
A34: =+A33+1 -> 18 | C34: ended November 30, 2022 | E34: 1908442.201
A36: =+A34+1 -> 19
A37: =+A36+1 -> 20 | C37: BALANCING ADJUSTMENT (BA) | E37: =E31/E34 -> -0.01161949417

Sheet PBRA 2021-00184
A1: Columbia Gas of Kentucky, Inc.
A2: PBR Incentive Adjustment
A3: Supporting Data
A5: Case No. 2021-00184
A7: Expires May 31, 2022 | D7: Surcharge | E7: Surcharge | F7: Surcharge
C8: Volume | D8: Rate | E8: Amount | F8: Balance
F9: 1749098.54
A10: 2021-06-30 | C10: 298812.2 | D10: 0.1555 | E10: =ROUND(C10*D10,2) -> 46465.3 | F10: =F9-E10 -> 1702633.24
A11: 2021-07-30 | C11: 216994.4 | D11: =D10 -> 0.1555 | E11: =+C11*D11 -> 33742.6292 | F11: =F10-E11 -> 1668890.611
A12: 2021-08-29 | C12: 201719 | D12: 0.1555 | E12: =+C12*D12 -> 31367.3045 | F12: 1637523.306
A13: 2021-09-28 | C13: 208289.3 | D13: 0.1555 | E13: =+C13*D13 -> 32388.98615 | F13: 1605134.32
A14: 2021-10-28 | C14: 249615.8 | D14: 0.1555 | E14: =+C14*D14 -> 38815.2569 | F14: 1566319.063
A15: 2021-11-27 | C15: 691474.2 | D15: 0.1555 | E15: 107524.2381 | F15: 1458794.825
A16: 2021-12-27 | C16: 1563568.4 | D16: 0.1555 | E16: 243134.8862 | F16: 1215659.939
A17: 2022-01-26 | C17: 1895123.1 | D17: 0.1555 | E17: 294691.642 | F17: 920968.2969
A18: 2022-02-25 | C18: 2600917.5 | D18: 0.1555 | E18: 404442.6713 | F18: 516525.6256
A19: 2022-03-27 | C19: 1505655.15 | D19: 0.1555 | E19: 234129.3758 | F19: 282396.2498
A20: 2022-04-26 | C20: 1131489.4 | D20: 0.1555 | E20: 175946.6017 | F20: 106449.6481
A21: 2022-05-26 | C21: 504504.2 | D21: 0.1555 | E21: 78450.4031 | F21: 27999.24502
A22: 2022-06-25 | C22: 1755.1 | D22: 0.1555 | E22: 272.91805 | F22: 27726.32697
E24: =SUM(E10:E22) -> 1721372.213
A26: SUMMARY:
A27: SURCHARGE AMOUNT | C27: =F9 -> 1749098.54
A29: AMOUNT COLLECTED | C29: =E24 -> 1721372.213
A31: TOTAL REMAINING TO BE
A32: COLLECTED | C32: =C27-C29 -> 27726.32698

Sheet BA 2022-00026
A1: Columbia Gas of Kentucky, Inc.
A2: Balancing Adjustment
A3: Supporting Data
A5: Case No. 2022-00026
A7: Expires: May 31, 2022 | D7: Surcharge | E7: Surcharge | F7: Surcharge
C8: Volume | D8: Rate | E8: Amount | F8: Balance
A9: Beginning Balance | F9: 720.64
A10: 2022-03-01 | C10: 1515253.85 | D10: 0.0003 | E10: =ROUND(C10*D10,2) -> 454.58 | F10: =F9-E10 -> 266.06
A11: 2022-04-01 | C11: 1131489.4 | D11: =D10 -> 0.0003 | E11: =ROUND(C11*D11,2) -> 339.45 | F11: =F10-E11 -> -73.39
A12: 2022-05-01 | C12: 504504.2 | D12: =D11 -> 0.0003 | E12: =ROUND(C12*D12,2) -> 151.35 | F12: =F11-E12 -> -224.74
A13: 2022-06-01 | C13: 1755.1 | D13: =D12 -> 0.0003 | E13: =ROUND(C13*D13,2) -> 0.53 | F13: =F12-E13 -> -225.27
A15: TOTAL SURCHARGE COLLECTED
A18: SUMMARY:
A19: SURCHARGE AMOUNT | C19: =+F9 -> 720.64
A21: AMOUNT COLLECTED | C21: =SUM(E10:E13) -> 945.91
A23: REMAINING BALANCE | C23: =C19-C21 -> -225.27

Sheet ACA 2021-00184
A1: Columbia Gas of Kentucky, Inc.
A2: Actual Cost Adjustment YR2021 QTR1
A3: Supporting Data
A6: Case No. 2021-00184
C7: Tariff | G7: Choice
A8: Expires: June 30, 2022 | D8: Refund | E8: Refund | H8: Refund | I8: Refund | J8: Refund
C9: Volume | D9: Rate | E9: Amount | G9: Volume | H9: Rate | I9: Amount | J9: Balance
J10: -1768327.32
A11: 2021-06-01 | C11: 296607.8 | D11: -0.1571 | E11: =ROUND(C11*D11,2) -> -46597.09 | G11: 2204.4 | H11: 0.3389 | I11: =ROUND(G11*H11,2) -> 747.07 | J11: =J10-E11-I11 -> -1722477.3
A12: 2021-07-01 | C12: 212696.4 | D12: =D11 -> -0.1571 | E12: =ROUND(C12*D12,2) -> -33414.6 | G12: 4298 | H12: =H11 -> 0.3389 | I12: =ROUND(G12*H12,2) -> 1456.59 | J12: =J11-E12-I12 -> -1690519.29
A13: 2021-08-01 | C13: 199442.4 | D13: -0.1571 | E13: -31332.4 | G13: 2276.6 | H13: 0.3389 | I13: 771.54 | J13: =J12-E13-I13 -> -1659958.43
A14: 2021-09-01 | C14: 205719 | D14: -0.1571 | E14: -32318.45 | G14: 2570.3 | H14: 0.3389 | I14: 871.07 | J14: =J13-E14-I14 -> -1628511.05
A15: 2021-10-01 | C15: 247470.2 | D15: -0.1571 | E15: -38877.57 | G15: 2145.6 | H15: 0.3389 | I15: 727.14 | J15: -1590360.62
A16: 2021-11-01 | C16: 688940.8 | D16: -0.1571 | E16: -108232.6 | G16: 2533.4 | H16: 0.3389 | I16: 858.57 | J16: -1482986.59
A17: 2021-12-01 | C17: 1558833.3 | D17: -0.1571 | E17: -244892.71 | G17: 4735.1 | H17: 0.3389 | I17: 1604.73 | J17: -1239698.61
A18: 2022-01-01 | C18: 1890710.4 | D18: -0.1571 | E18: -297030.6 | G18: 4412.7 | H18: 0.3389 | I18: 1495.46 | J18: -944163.47
A19: 2022-02-01 | C19: 2594836.1 | D19: -0.1571 | E19: -407648.75 | G19: 6081.4 | H19: 0.3389 | I19: 2060.99 | J19: -538575.71
A20: 2022-03-01 | C20: 1501357.7 | D20: -0.1571 | E20: -235863.29 | G20: 4297.45 | H20: 0.3389 | I20: 1456.41 | J20: -304168.83
A21: 2022-04-01 | C21: 1128387.4 | D21: -0.1571 | E21: -177269.66 | G21: 3102 | H21: 0.3389 | I21: 1051.27 | J21: -127950.44
A22: 2022-05-01 | C22: 501989.7 | D22: -0.1571 | E22: -78862.58 | G22: 2514.5 | H22: 0.3389 | I22: 852.16 | J22: -49940.02
A23: 2022-06-01 | C23: 1731.1 | D23: -0.1571 | E23: -271.96 | G23: 24 | H23: 0.3389 | I23: 8.13 | J23: -49676.19
A27: SUMMARY:
A28: REFUND AMOUNT | D28: =J10 -> -1768327.32
A29: LESS
A30: AMOUNT REFUNDED | D30: =SUM(E11:E23,I11:I23) -> -1718651.13
A33: TOTAL REMAINING REFUND | D33: =D28-D30 -> -49676.19
